{"text_format":"1","workbook":"xlsx","n_sheets":2,"sheets":["Checklist","Blad3"],"not_rendered":{"charts":0,"images":0,"macros":1,"external_links":0,"defined_names":3,"comments":0,"pivot_tables":0},"unopened":[],"bounds":{"document_bytes":16777216,"sheet_cells":100000,"rows_first":2000,"rows_last":500,"rows_between":2000,"halvings":0,"cell_chars":16384,"cell_head_chars":4096},"cells_cut":0,"cells_raw":0,"read":"whole","date_system":"1900"}

{"sheet":"Checklist","index":0,"n_rows":206,"n_cols":19,"rows_kept":206,"cut":false,"hidden":false,"merged":[[0,12,0,18],[0,2,0,11],[3,0,3,18],[0,0,0,1],[15,14,16,18],[15,1,17,1],[16,11,17,11],[16,12,17,12],[16,13,17,13],[205,0,205,1],[205,2,205,10],[205,11,205,18],[2,0,2,18],[1,0,1,18]]}
[null,null,"ARBEIDSPLAATSEN - EVALUATIE RISICO'S - CHECKLIST HEROPSTART NA COVID 19",null,null,null,null,null,null,null,null,null,"\nVersie: 2020/04/29                      "]
["Arbeidsplaats:\n\nRisicoanalyse uitgevoerd door: \n\n\nDatum:"]
["In deze checklist worden de te evalueren risico’s betreffende de heropstart na COVID 19 vermeld in deze checklist . Deze risico's vermeld in deze checklist zijn verder te evalueren volgens de toepasselijke reglementeringen, codes van goede praktijk, vergunningen, … . \n\nDeze checklijst moet aangevuld worden met niet vermelde risico’s specifiek voor het eigen bedrijf.\n\nUit deze globale lijst kunnen specifieke onderwerpen en items geselecteerd worden voor het uitvoeren van themagerichte risicoanalyses (\"deelrisicoanalyses\"). \n\nDeze risicoanalyse is niet toepasbaar voor: buiten de onderneming of inrichting gebruikte transportmiddelen, arbeidsplaatsen binnen transportmiddelen, tijdelijke of mobiele bouwplaatsen, winningsindustrieën, vissersvaartuigen, velden, bossen en andere terreinen die deel uitmaken van een landbouwbedrijf of bosbouwbedrijf, maar buiten het bebouwde gebied van dat bedrijf gelegen zijn. Hiervoor moeten specifieke risicoanalyses uitgevoerd worden.    \n\n   \n"]
["Gebruikte afkortingen: AP = Arbeidsplaats / WN = Werknemer  / WG = Werkgever / EDTC = Externe Dienst voor Technische Controles/ ER = Europese Richtlijn/ CODEX = CODEX voor het WELZIJN op het WERK/ ARAB = Algemeen Reglement op de ArbeidsBescherming.  "]
[]
[]
[]
[]
[]
[]
[]
[]
[]
[]
[]
[null,null,null,null,null,"Situatie bij NOK ",null,null,null,null,null,null,null,null,"Sit. na nemen van  voorgestelde maatregelen"]
[null,null,null,null,null,"Initiële Risicogrootte",null,null,null,null,null,"Verantw. \nuitvoering","Plandatum","Datum      uitgevoerd"]
[null,null,"OK","NOK","NVT","W","B","E","R","Priori teit","Vastgesteld risico  - \nVoorgestelde preventieve maatregelen",null,null,null,"W","B","E","R","Priori teit"]
[]
[1,"Algemene maatregelen"]
["1.01","Is er op regelmatige basis overleg  over de maatregelen met de ondernemingsraad, CPBW, de vakbondsafvaardiging en werknemers over de maatregelen",null,null,null,null,null,null,{"$f":"IF(C21=\"x\",\"----\",IF(E21=\"x\",\"----\",IF((F21=\"g\")*(G21=\"g\")*(H21=\"g\"),\"ZG\",\"\")&IF((F21=\"G\")*(G21=\"G\")*(H21=\"K\"),\"G\",\"\")&IF((F21=\"G\")*(G21=\"k\")*(H21=\"g\"),\"G\",\"\")&IF((F21=\"K\")*(G21=\"G\")*(H21=\"G\"),\"G\",\"\")&IF((F21=\"G\")*(G21=\"K\")*(H21=\"K\"),\"K\",\"\")&IF((F21=\"K\")*(G21=\"G\")*(H21=\"K\"),\"K\",\"\")&IF((F21=\"K\")*(G21=\"K\")*(H21=\"G\"),\"G\",\"\")&IF((F21=\"K\")*(G21=\"K\")*(H21=\"K\"),\"ZK\",\"\")))","v":""},{"$f":"IF(I21=\"ZG\",\"1\",IF(I21=\"G\",\"2\",IF(I21=\"K\",\"3\",IF(I21=\"Zk\",\"4\",IF((I21=\"__\"),\"5\",\"6\")))))","v":"6"},null,null,null,{"$f":"IF(C21=\"x\",\"----\",\"\")&IF(E21=\"x\",\"----\",\"\")","v":""},null,null,null,{"$f":"IF(C21=\"x\",\"----\",IF(E21=\"x\",\"----\",IF(N21=\"x\",\"\",IF((O21=\"g\")*(P21=\"g\")*(Q21=\"g\"),\"ZG\",\"\")&IF((O21=\"G\")*(P21=\"G\")*(Q21=\"K\"),\"G\",\"\")&IF((O21=\"G\")*(P21=\"k\")*(Q21=\"g\"),\"G\",\"\")&IF((O21=\"K\")*(P21=\"G\")*(Q21=\"G\"),\"G\",\"\")&IF((O21=\"G\")*(P21=\"K\")*(Q21=\"K\"),\"K\",\"\")&IF((O21=\"K\")*(P21=\"G\")*(Q21=\"K\"),\"K\",\"\")&IF((O21=\"K\")*(P21=\"K\")*(Q21=\"G\"),\"G\",\"\")&IF((O21=\"K\")*(P21=\"K\")*(Q21=\"K\"),\"ZK\",\"\"))))","v":""},{"$f":"IF(R21=\"ZG\",\"1\",IF(R21=\"G\",\"2\",IF(R21=\"K\",\"3\",IF(R21=\"Zk\",\"4\",IF((R21=\"__\"),\"5\",\"6\")))))","v":"6"}]
["1.02","Is er communicatie vanuit de raad van bestuur, algemeen directeur, directiecomité aan het personeel naar aanleiding van de heropstart? Wordt hierin het aspect veiligheid mee opgenomen?",null,null,null,null,null,null,"","6",null,null,null,"",null,null,null,"","6"]
["1.03","Is er beroep gedaan op expertise intern en extern ? (IDPB, EDPB, EDTC,…) Hebben zij hun advies kunnen geven?",null,null,null,null,null,null,{"$f":"IF(C23=\"x\",\"----\",IF(E23=\"x\",\"----\",IF((F23=\"g\")*(G23=\"g\")*(H23=\"g\"),\"ZG\",\"\")&IF((F23=\"G\")*(G23=\"G\")*(H23=\"K\"),\"G\",\"\")&IF((F23=\"G\")*(G23=\"k\")*(H23=\"g\"),\"G\",\"\")&IF((F23=\"K\")*(G23=\"G\")*(H23=\"G\"),\"G\",\"\")&IF((F23=\"G\")*(G23=\"K\")*(H23=\"K\"),\"K\",\"\")&IF((F23=\"K\")*(G23=\"G\")*(H23=\"K\"),\"K\",\"\")&IF((F23=\"K\")*(G23=\"K\")*(H23=\"G\"),\"G\",\"\")&IF((F23=\"K\")*(G23=\"K\")*(H23=\"K\"),\"ZK\",\"\")))","v":""},{"$f":"IF(I23=\"ZG\",\"1\",IF(I23=\"G\",\"2\",IF(I23=\"K\",\"3\",IF(I23=\"Zk\",\"4\",IF((I23=\"__\"),\"5\",\"6\")))))","v":"6"},null,null,null,{"$f":"IF(C23=\"x\",\"----\",\"\")&IF(E23=\"x\",\"----\",\"\")","v":""},null,null,null,{"$f":"IF(C23=\"x\",\"----\",IF(E23=\"x\",\"----\",IF(N23=\"x\",\"\",IF((O23=\"g\")*(P23=\"g\")*(Q23=\"g\"),\"ZG\",\"\")&IF((O23=\"G\")*(P23=\"G\")*(Q23=\"K\"),\"G\",\"\")&IF((O23=\"G\")*(P23=\"k\")*(Q23=\"g\"),\"G\",\"\")&IF((O23=\"K\")*(P23=\"G\")*(Q23=\"G\"),\"G\",\"\")&IF((O23=\"G\")*(P23=\"K\")*(Q23=\"K\"),\"K\",\"\")&IF((O23=\"K\")*(P23=\"G\")*(Q23=\"K\"),\"K\",\"\")&IF((O23=\"K\")*(P23=\"K\")*(Q23=\"G\"),\"G\",\"\")&IF((O23=\"K\")*(P23=\"K\")*(Q23=\"K\"),\"ZK\",\"\"))))","v":""},{"$f":"IF(R23=\"ZG\",\"1\",IF(R23=\"G\",\"2\",IF(R23=\"K\",\"3\",IF(R23=\"Zk\",\"4\",IF((R23=\"__\"),\"5\",\"6\")))))","v":"6"}]
["1.04","zijn er duidelijke instructies, opleiding en communicatie over de maatregelen?",null,null,null,null,null,null,"","6",null,null,null,"",null,null,null,"","6"]
["1.05","Voorzie informatie voor werknemers en externen over de specifieke regels binnen de organisatie.  Zijn de contactgegevens van nuttige referentiepersonen geafficheerd?",null,null,null,null,null,null,"","6",null,null,null,"",null,null,null,"","6"]
["1.06","Worden de regels van 'social distancing' maximaal toegepast (fysieke barrière, markeringen,…)",null,null,null,null,null,null,"","6",null,null,null,"",null,null,null,"","6"]
["1.07","Hangen de richtlijnen van de Vlaamse overheid uit over 'social distancing' en hygiëne?",null,null,null,null,null,null,"","6",null,null,null,"",null,null,null,"","6"]
["1.08","Wordt het jaaractieplan ge-update en geevalueerd?  Zijn eerder gestelde prioriteiten nog  geldig?  Zijn er nieuwe prioriteiten die opgenomen moeten worden in het jaaractieplan 2021? Idem voor globaal preventieplan.",null,null,null,null,null,null,"","6",null,null,null,"",null,null,null,"","6"]
[2,"Hygiënemaatregelen"]
["2.01","Handhygiëne en respiratoire hygiëne\n  "]
["2.01.01","Wast men z'n handen regelmatig met water en vloeibare zeep op een correcte manier?",null,null,null,null,null,null,"","6",null,null,null,"",null,null,null,"","6"]
["2.01.02","Zijn er voldoende mogelijkheden ter beschikking om de handen te kunnen wassen, drogen en ontsmetten? ",null,null,null,null,null,null,"","6",null,null,null,"",null,null,null,"","6"]
["2.01.03","Voldoen de ter beschikking gestelde producten (geschikte zeep, handgel) ",null,null,null,null,null,null,"","6",null,null,null,"",null,null,null,"","6"]
["2.01.04","wordt contact met voorwerpen of oppervlakken die door anderen gebruikt of aangeraakt zijn vermeden? Of worden de handen gewassen na contact hiermee?",null,null,null,null,null,null,"","6",null,null,null,"",null,null,null,"","6"]
["2.01.05","Zijn er papieren zakdoekjes ter beschikking gesteld",null,null,null,null,null,null,"","6",null,null,null,"",null,null,null,"","6"]
["2.01.06","Worden medewerkers gesensibiliseerd over handhygiëne, hoesten of niezen in een zakdoek of elleboog via affiches? ",null,null,null,null,null,null,"","6",null,null,null,"",null,null,null,"","6"]
["2.01.07","Hangen de instructies uit over hoe de handen correct gewassen moeten worden?",null,null,null,null,null,null,"","6",null,null,null,"",null,null,null,"","6"]
["2.01.08","Zijn er passende recipiënten voorzien voor de opvang van het afvalmateriaal (zakdoekjes, wegwerpreinigingsdoekjes)",null,null,null,null,null,null,"","6",null,null,null,"",null,null,null,"","6"]
["2.01.09","Wordt hierbij gebruik gemaakt van beschermingsmiddelen (wegwerphandschoenen) en is er voldoende aandacht bij het aan- en uitdoen en het weggooien ervan?",null,null,null,null,null,null,"","6",null,null,null,"",null,null,null,"","6"]
["2.02","Reiniging van werkplekken, arbeidsmiddelen en sociale voorzieningen"]
["2.02.01","Is er een schoonmaakprogramma met prioritaire aandacht voor oppervlakken, klinken, knoppen, telefoons, printers (alles wat aangeraakt wordt)?",null,null,null,null,null,null,"","6",null,null,null,"",null,null,null,"","6"]
["2.02.02","Worden de arbeidsplaatsen en werkposten goed gereinigd, is er reiniging voorzien tussen shiften door? ",null,null,null,null,null,null,"","6",null,null,null,"",null,null,null,"","6"]
["2.02.03","Worden de handvaten, deurklinken,  (trap)leuningen, liftknoppen, lichtschakelaars, handgrepen van kasten en schuiven, kranen van wastafels, bedieningsknoppen van toestellen, … na en voor ieder gebruik door een andere persoon gereinigd? ",null,null,null,null,null,null,"","6",null,null,null,"",null,null,null,"","6"]
["2.02.04","Worden bedieningsschermen van printers of machines na en voor ieder gebruik door een andere persoon gereinigd of kan dit met een touchscreen-pen gebeuren?  ",null,null,null,null,null,null,"","6",null,null,null,"",null,null,null,"","6"]
["2.02.05","Worden smartphones, toetsenborden en computermuizen na en voor ieder gebruik door een andere persoon gereinigd? ",null,null,null,null,null,null,"","6",null,null,null,"",null,null,null,"","6"]
["2.02.06","Worden stoelen (leuningen), werkbladen van bureaus, postbakjes en vuilbakken, na en voor ieder gebruik door een andere persoon gereinigd? ",null,null,null,null,null,null,"","6",null,null,null,"",null,null,null,"","6"]
["2.02.07","Heeft het personeel dat schoonmaakt de passende beschermingsmiddelen, reinigingsmiddelen en instructies ter beschikking",null,null,null,null,null,null,"","6",null,null,null,"",null,null,null,"","6"]
["2.03","Ventilatie en verluchting"]
["2.03.01","Is er voldoende en regelmatige verluchting van de werk- en sociale ruimten, hetzij door natuurlijke verluchting, hetzij door mechanische ventilatie, voorzien",null,null,null,null,null,null,"","6",null,null,null,"",null,null,null,"","6"]
["2.03.02","Is er een goed onderhoud van ventilatie- en/of verluchtingssysteem voorzien.  Zijn  er aanvullende maatregelen nodig bij systemen waar de lucht circuleert.",null,null,null,null,null,null,"","6",null,null,null,"",null,null,null,"","6"]
["2.03.03","Worden er geen individuele vantilatoren gebruikt? (die kunnen het virus verspreiden)",null,null,null,null,null,null,"","6",null,null,null,"",null,null,null,"","6"]
["2.04","Collectieve beschermingsmiddelen en persoonlijke beschermingsmiddelen"]
["2.04.01","Krijgen collectieve beschermingsmiddelen voorrang op persoonlijke beschermingsmiddelen?",null,null,null,null,null,null,"","6",null,null,null,"",null,null,null,"","6"]
["2.04.02","worden collectieve beschermingsmiddelen toegepast? (tussenwanden geplaatst, Linten gespannen, markeringen aangebracht)",null,null,null,null,null,null,"","6",null,null,null,"",null,null,null,"","6"]
["2.04.03","Worden persoonlijke beschermingsmiddelen gebruikt (beschermende kledij, schorten, spatbril, handschoenen, ademhalingsbeschermingsmasker?",null,null,null,null,null,null,"","6",null,null,null,"",null,null,null,"","6"]
["2.05","Mondmaskers"]
["2.05.01","Zijn er, na uitputting van organisatorische maatregelen en collectieve maatregelen,  situaties waar de 1,5 meter niet kan worden gerespecteerd waar het dragen van een mondmasker een bijkomende maatregel kan zijn?",null,null,null,null,null,null,"","6",null,null,null,"",null,null,null,"","6"]
["2.05.02","Worden in deze situaties de mondmaskers correct gedragen en afgezet?",null,null,null,null,null,null,"","6",null,null,null,"",null,null,null,"","6"]
["2.05.03","zijn deze beschermingsmiddelen voldoende aanwezig",null,null,null,null,null,null,"","6",null,null,null,"",null,null,null,"","6"]
["2.05.04","Is men er zich van bewust dat deze mondmaskers enkel een barrière vormt voor spatten of grote druppels.",null,null,null,null,null,null,"","6",null,null,null,"",null,null,null,"","6"]
["2.05.05","Zijn er medewerkers die worden blootgesteld aan zorg voor patiënten, biologische of chemische agentia?",null,null,null,null,null,null,"","6",null,null,null,"",null,null,null,"","6"]
["2.05.06","Is er voor deze situaties een aparte risicoanalyse opgemaakt?",null,null,null,null,null,null,"","6",null,null,null,"",null,null,null,"","6"]
["2.05.07","Zijn voor deze medewerkers de geschikte PBM ter beschikking (FFP2 of FFP3 maskers, wegwerphandschoenen (niet geschikt om infectieoverdracht te vermijden))?",null,null,null,null,null,null,"","6",null,null,null,"",null,null,null,"","6"]
["2.05.08",null,null,null,null,null,null,null,"","6",null,null,null,"",null,null,null,"","6"]
["2.05.09","Voldoen deze PBM aan de strikte normen met beschermingsgraad?",null,null,null,null,null,null,"","6",null,null,null,"",null,null,null,"","6"]
["2.05.10","Hebben zij hiervoor de nodige informatie en opleiding gekregen?",null,null,null,null,null,null,"","6",null,null,null,"",null,null,null,"","6"]
[3,"Van Thuis naar het werk"]
["3.01","Voor je vertrekt"]
["3.01.01","Hebben medewerkers de instructie gekregen dat wanneer zij zich ziek voelen, ze thuis blijven en de werkgever verwittigen?",null,null,null,null,null,null,"","6",null,null,null,"",null,null,null,"","6"]
["3.01.02","Hebben dmedewerkers de instructie gekregen om hun handen te wassen vooraleer ze thuis vertrekken?",null,null,null,null,null,null,"","6",null,null,null,"",null,null,null,"","6"]
["3.02","Vervoer"]
["3.02.01","Hebben mederwerkers die per fiets, per step of te voet naar het werk komen de instructie gekregen om voldoende afstand te houden en bij voorkeur geen gebruik te maken van deelfietsen, deelsteps,…",null,null,null,null,null,null,"","6",null,null,null,"",null,null,null,"","6"]
["3.02.02","Hebben mederwerkers die, niet alleen,  met de wagen komen de instructie gekregen om de minilmale afstand van 1,5m tussen elke persoon tijdens het vervoerte respecteren?",null,null,null,null,null,null,"","6",null,null,null,"",null,null,null,"","6"]
["3.02.03","Hebben deze medewerkers de instructie gekregen om die auto regelmatig te verluchten en te reinigen?",null,null,null,null,null,null,"","6",null,null,null,"",null,null,null,"","6"]
["3.02.04","Hebben medewerkers die met het openbaar vervoer komen de instructie gekregen om de richtlijnen van de openbare vervoersmaatschappijen  strikt te volgen?",null,null,null,null,null,null,"","6",null,null,null,"",null,null,null,"","6"]
["3.02.05","Wordt bij het door de werkgever gemeenschappelijk georganiseerd vervoer de social distancing gerespecteerd of worden afscheidingen voorzien en bijkomende mondmaskers gebruikt",null,null,null,null,null,null,"","6",null,null,null,"",null,null,null,"","6"]
["3.02.06","Wordt bij het door de werkgever gemeenschappelijk georganiseerd vervoer het goed functioneren van het ventilatie- en verluchtingssysteem en het onderhoud ervan opgevolgd?",null,null,null,null,null,null,"","6",null,null,null,"",null,null,null,"","6"]
["3.02.07","Wordt bij het door de werkgever gemeenschappelijk georganiseerd vervoer voldoende aandacht besteed aan de hygiëne binnen in de voertuigen die door verschillende personen worden gebruikt?",null,null,null,null,null,null,"","6",null,null,null,"",null,null,null,"","6"]
["3.02.08","Worden voertuigen bij wissel van chauffeur gereinigd en ontsmet?",null,null,null,null,null,null,"","6",null,null,null,"",null,null,null,"","6"]
[4,"Bij aankomst op het werk"]
["4.01","Is er een procedure waarbij een persoon die zich ziek voelt bij aankomst, terugkeren naar huis? Is er een procedure hoe ga ik als werkgever om met werknemers die corona-griep symptomen vertonen?",null,null,null,null,null,null,"","6",null,null,null,"",null,null,null,"","6"]
["4.02","Kan het gelijktijdig aankomen van medewerkers vermeden worden?",null,null,null,null,null,null,"","6",null,null,null,"",null,null,null,"","6"]
["4.03","Zijn er meerdere ingangen mogelijk om spreiding te bewerkstelligen?",null,null,null,null,null,null,"","6",null,null,null,"",null,null,null,"","6"]
["4.04","Is er voldoende spreiding en plaats voor het stallen van fietsen?",null,null,null,null,null,null,"","6",null,null,null,"",null,null,null,"","6"]
["4.05","Is de mogelijkheid voor spreiding in tijd bekeken (mogelijkheden om het werk vroeger of later te beginnen) ",null,null,null,null,null,null,"","6",null,null,null,"",null,null,null,"","6"]
["4.06","Kunnen spreidingsmaatregelen toegepast worden bij in- en uit- en doorgangen (markeringen, barrières)?",null,null,null,null,null,null,"","6",null,null,null,"",null,null,null,"","6"]
["4.07","Is de optie om bepaalde in- uit- en doorgangen eenrichtingsverkeer te maken ten gronde bekeken?",null,null,null,null,null,null,{"$f":"IF(C87=\"x\",\"----\",IF(E87=\"x\",\"----\",IF((F87=\"g\")*(G87=\"g\")*(H87=\"g\"),\"ZG\",\"\")&IF((F87=\"G\")*(G87=\"G\")*(H87=\"K\"),\"G\",\"\")&IF((F87=\"G\")*(G87=\"k\")*(H87=\"g\"),\"G\",\"\")&IF((F87=\"K\")*(G87=\"G\")*(H87=\"G\"),\"G\",\"\")&IF((F87=\"G\")*(G87=\"K\")*(H87=\"K\"),\"K\",\"\")&IF((F87=\"K\")*(G87=\"G\")*(H87=\"K\"),\"K\",\"\")&IF((F87=\"K\")*(G87=\"K\")*(H87=\"G\"),\"G\",\"\")&IF((F87=\"K\")*(G87=\"K\")*(H87=\"K\"),\"ZK\",\"\")))","v":""},{"$f":"IF(I87=\"ZG\",\"1\",IF(I87=\"G\",\"2\",IF(I87=\"K\",\"3\",IF(I87=\"Zk\",\"4\",IF((I87=\"__\"),\"5\",\"6\")))))","v":"6"},null,null,null,{"$f":"IF(C87=\"x\",\"----\",\"\")&IF(E87=\"x\",\"----\",\"\")","v":""},null,null,null,{"$f":"IF(C87=\"x\",\"----\",IF(E87=\"x\",\"----\",IF(N87=\"x\",\"\",IF((O87=\"g\")*(P87=\"g\")*(Q87=\"g\"),\"ZG\",\"\")&IF((O87=\"G\")*(P87=\"G\")*(Q87=\"K\"),\"G\",\"\")&IF((O87=\"G\")*(P87=\"k\")*(Q87=\"g\"),\"G\",\"\")&IF((O87=\"K\")*(P87=\"G\")*(Q87=\"G\"),\"G\",\"\")&IF((O87=\"G\")*(P87=\"K\")*(Q87=\"K\"),\"K\",\"\")&IF((O87=\"K\")*(P87=\"G\")*(Q87=\"K\"),\"K\",\"\")&IF((O87=\"K\")*(P87=\"K\")*(Q87=\"G\"),\"G\",\"\")&IF((O87=\"K\")*(P87=\"K\")*(Q87=\"K\"),\"ZK\",\"\"))))","v":""},{"$f":"IF(R87=\"ZG\",\"1\",IF(R87=\"G\",\"2\",IF(R87=\"K\",\"3\",IF(R87=\"Zk\",\"4\",IF((R87=\"__\"),\"5\",\"6\")))))","v":"6"}]
["4.08","Wordt het gebruik van liften afgeraden? ",null,null,null,null,null,null,"","6",null,null,null,"",null,null,null,"","6"]
["4.09","Is het aantal personen dat gelijktijdig gebruik maakt van de lift beperkt tot 1persoon",null,null,null,null,null,null,"","6",null,null,null,"",null,null,null,"","6"]
["4.10","Is er eenrichtingsverkeer voorzien op smalle trappen, of doorgangen (vb één trap voor naar boven gaan en een andere voor naar beneden gaan)",null,null,null,null,null,null,"","6",null,null,null,"",null,null,null,"","6"]
["4.11","Zijn er voorrangsregels afgesproken op smalle trappen of doorgangen (vb voorrang voor wie naar boven gaat of omgekeerd)",null,null,null,null,null,null,"","6",null,null,null,"",null,null,null,"","6"]
["4.12","Wordt het gebruik van contactloos openen van automatische sloten zoveel mogelijk toegepast (gebruik van badges voor het openen van poorten en deuren indien mogelijk)",null,null,null,null,null,null,"","6",null,null,null,"",null,null,null,"","6"]
["4.13","Krijgen medewerkers de instructie om bij aankomst op het werk telkens de handen te wassen?",null,null,null,null,null,null,"","6",null,null,null,"",null,null,null,"","6"]
[5,"Kleedruimte /kleedkamers"]
["5.01","Kunnen de regels van social distancing gerespecteerd worden in deze ruimtes?\nHerteken indien nodig het concept van de kleedruimte of voorzie tijdelijk extra kleedruimtes of afgebakende zones.",null,null,null,null,null,null,"","6",null,null,null,"",null,null,null,"","6"]
["5.02","Wordt het aantl personen dat tergelijkertijd gebruik maakt van deze ruimtes beperkt?",null,null,null,null,null,null,"","6",null,null,null,"",null,null,null,"","6"]
["5.03","Worden deze ruimtes regelmatig verlucht",null,null,null,null,null,null,"","6",null,null,null,"",null,null,null,"","6"]
["5.04","Worden deze ruimtes regelmatig gereinigd",null,null,null,null,null,null,"","6",null,null,null,"",null,null,null,"","6"]
["5.05","krijgen de medewerkers de instructie om voor en na gebruik van de kleedkamer de handen te wassen.",null,null,null,null,null,null,"","6",null,null,null,"",null,null,null,"","6"]
[6,"Tijdens het werk/op de werkpost"]
["6.01","Arbeidsorganisatie en social distancing"]
["6.01.01","Wordt telewerk waar mogelijk maximaal toegepast?",null,null,null,null,null,null,"","6",null,null,null,"",null,null,null,"","6"]
["6.01.02","Kunnen de regels van social distancing gerespecteerd worden voor wie op het werk aanwezig is?",null,null,null,null,null,null,"","6",null,null,null,"",null,null,null,"","6"]
["6.01.03","Is er voldoende afstand tussen de verschillende werkposten? Worden de werkplekken zodanig georganiseerd zodat de afstand gerespecteerd kan worden",null,null,null,null,null,null,"","6",null,null,null,"",null,null,null,"","6"]
["6.01.04","Worden organisatorische maatregelen (spreiden van werktijden, pauzes, flexibele uren, werken in shifts,…) toegepast indien afstand niet kan worden gerespecteerd?",null,null,null,null,null,null,"","6",null,null,null,"",null,null,null,"","6"]
["6.01.05","Worden collectieve maatregelen (schermen of wanden om werkplekken te compartimenteren,…) toegepast indien afstand niet kan worden gerespecteerd?",null,null,null,null,null,null,"","6",null,null,null,"",null,null,null,"","6"]
["6.01.06","Wordt het aantal werknemers aanwezig in éénzelfde ruimte  beperkt (thuiswerk, pauzes,..)",null,null,null,null,null,null,"","6",null,null,null,"",null,null,null,"","6"]
["6.01.07","Wordt de tijd dat werknemers aanwezig zijn in éénzelfde ruimte beperkt en wordt er voldoende afstand gehouden (extra aandacht bij printers)",null,null,null,null,null,null,"","6",null,null,null,"",null,null,null,"","6"]
["6.01.08","Wordt de grootte van een team dat samen werkt zo beperkt mogelijk gehouden",null,null,null,null,null,null,"","6",null,null,null,"",null,null,null,"","6"]
["6.01.09","Wordt de rotatie in de samenstelling van het team beperkt?",null,null,null,null,null,null,"","6",null,null,null,"",null,null,null,"","6"]
["6.01.10","Worden enkel de ruimtes betreden waar er werkzaamheden moeten worden uitgevoerd? ",null,null,null,null,null,null,"","6",null,null,null,"",null,null,null,"","6"]
["6.01.11","Worden werkzaamheden waarbij de afstand niet gerespecteerd kan worden en die niet dringend zijn uitgesteld?",null,null,null,null,null,null,"","6",null,null,null,"",null,null,null,"","6"]
["6.01.12","Worden werkzaamheden waarbij de afstand niet gerespecteerd kan worden en die wel dringend zijn herbekeken en opnieuw geevalueerd?",null,null,null,null,null,null,"","6",null,null,null,"",null,null,null,"","6"]
["6.02","Arbeidsmiddelen"]
["6.02.01","Is er goede hygiëne van de arbeidsmiddelen (gereedschap, smartphones, toetsenbord)?",null,null,null,null,null,null,"","6",null,null,null,"",null,null,null,"","6"]
["6.02.02","Zijn er maatregelen genomen om besmetting via materialen te voorkomen (reiniging van werkstukken en arbeidsmiddelen die door meerdere werknemers gebruikt worden)?",null,null,null,null,null,null,"","6",null,null,null,"",null,null,null,"","6"]
["6.02.03","Wordt zoveel mogelijk met eigen arbeidsmiddelen gewerkt",null,null,null,null,null,null,"","6",null,null,null,"",null,null,null,"","6"]
["6.02.04","Worden deze regematig gereinigd?(zeker bij gebruik door andere werknemer)",null,null,null,null,null,null,"","6",null,null,null,"",null,null,null,"","6"]
["6.02.05","Wordt bij de heropstart van arbeidsmiddelen de technische dienst betrokken om te vermijden dat alles tergelijkertijd zou opstarten?",null,null,null,null,null,null,"","6",null,null,null,"",null,null,null,"","6"]
["6.03","Vergaderen, en andere bijeenkomsten"]
["6.03.01","Worden vergaderingen, opleidingen of werkoverleg op een alternatieve manier georganiseerd (digitale communicatie)?",null,null,null,null,null,null,"","6",null,null,null,"",null,null,null,"","6"]
["6.03.02","Worden niet-essentiele vergaderingen geannuleerd?",null,null,null,null,null,null,"","6",null,null,null,"",null,null,null,"","6"]
["6.03.03","Worden de essentiële vergaderingen beperkt in tijd?",null,null,null,null,null,null,"","6",null,null,null,"",null,null,null,"","6"]
["6.03.04","Wordt het aantal deelnemers beperkt?",null,null,null,null,null,null,"","6",null,null,null,"",null,null,null,"","6"]
["6.03.05","Worden bij  fysieke vergaderingen de regels van social distancing gerespecteerd? (enkel de noodzakelijke personen en afstand houden)",null,null,null,null,null,null,"","6",null,null,null,"",null,null,null,"","6"]
["6.03.06","Wordt de ruimte gereinigd en verlucht na de vergadering?",null,null,null,null,null,null,"","6",null,null,null,"",null,null,null,"","6"]
["6.04","Wat als een werknemer ziek wordt tijdens het werk"]
["6.04.01","Is er een procedure waarbij een persoon die ziek wordt tijdens het werk, naar huis moet? Is er een procedure hoe ga ik als werkgever om met werknemers die corona-griep symptomen vertonen?",null,null,null,null,null,null,"","6",null,null,null,"",null,null,null,"","6"]
["6.04.02","Worden werknemers met een milde hoest naar huis verwezen?",null,null,null,null,null,null,"","6",null,null,null,"",null,null,null,"","6"]
["6.04.03","Worden werknemers met beperkte verhoogde lichaamstemperatuur (>37.3°C) naar de huisarts verwezen (na telefonische aankondiging)?",null,null,null,null,null,null,"","6",null,null,null,"",null,null,null,"","6"]
["6.04.04","Wordt de werkplaats ontsmet als een werknemer de werkplek wegens ziekte verlaat?",null,null,null,null,null,null,"","6",null,null,null,"",null,null,null,"","6"]
["6.04.05","Zijn deze procedures gekend bij het personeel? Wordt dit ook opgenomen in affiches?",null,null,null,null,null,null,"","6",null,null,null,"",null,null,null,"","6"]
["6.04.06","Zijn er steeds voldoendehulpverleners op post?",null,null,null,null,null,null,"","6",null,null,null,"",null,null,null,"","6"]
["6.04.07","Hebben de eerste hulp verleners de nodige richtlijnen in het kader van corona ontvangen",null,null,null,null,null,null,"","6",null,null,null,"",null,null,null,"","6"]
["6.04.08","Hebben eerste hulp verleners de nodige PBM ter beschikking",null,null,null,null,null,null,"","6",null,null,null,"",null,null,null,"","6"]
[7,"Sanitaire voorzieningen"]
["7.01","Hebben medewerkers de instructie gekregen de handen te wassen voor en na gebruik van het toilet?",null,null,null,null,null,null,"","6",null,null,null,"",null,null,null,"","6"]
["7.02","Zijn er voldoende papieren doekjes om de handen te drogen voorzien?",null,null,null,null,null,null,"","6",null,null,null,"",null,null,null,"","6"]
["7.03","Is er vloeibare zeep ter beschikking?",null,null,null,null,null,null,"","6",null,null,null,"",null,null,null,"","6"]
["7.04","Worden de sanitaire lokalen regelmatig verlucht?",null,null,null,null,null,null,"","6",null,null,null,"",null,null,null,"","6"]
["7.05","Worden de sanitaire lokalen regelmatig grondig gereinigd?",null,null,null,null,null,null,"","6",null,null,null,"",null,null,null,"","6"]
["7.06","Gaat hierbij voldoende aandacht naar : Zeep- en papeirdispensers, toiletten, urinoirs, lavabo's, spoelknop toiletten, kranen?",null,null,null,null,null,null,"","6",null,null,null,"",null,null,null,"","6"]
["7.07","is de afstand die mensen moeten afleggen om de handen te kunnen wassen voldoende beperkt?",null,null,null,null,null,null,"","6",null,null,null,"",null,null,null,"","6"]
["7.08","Kunnen externen van zodra ze binnen komen hun handen wassen? (ingangen, laad en los zones,…)",null,null,null,null,null,null,"","6",null,null,null,"",null,null,null,"","6"]
[8,"Rust- en lunchpauzes"]
["8.01","Hebben medewerkers de instructie gekregen de handen te wassen voor en na de pauze/lunch?",null,null,null,null,null,null,"","6",null,null,null,"",null,null,null,"","6"]
["8.02","Worden de pauzemomenten en lunchtijden gespreid?",null,null,null,null,null,null,"","6",null,null,null,"",null,null,null,"","6"]
["8.03","Wordt het aantal personen, gelijktijdig, aanwezig in lunch- of pauzeruimtes beperkt?",null,null,null,null,null,null,"","6",null,null,null,"",null,null,null,"","6"]
["8.04","Is het aantal personen toegestaan in deze lokalen gecommuniceerd?",null,null,null,null,null,null,"","6",null,null,null,"",null,null,null,"","6"]
["8.05","Is de tijd die personen in deze lokalen mogen doorbrengen gecommuniceerd?",null,null,null,null,null,null,"","6",null,null,null,"",null,null,null,"","6"]
["8.06","Zijn de zitplaatsen in deze ruimten zo georganiseerd zodat de social distancing gerespecteerd wordt (vb niet recht tegenover elkaar gaan zitten,…)?",null,null,null,null,null,null,{"$f":"IF(C151=\"x\",\"----\",IF(E151=\"x\",\"----\",IF((F151=\"g\")*(G151=\"g\")*(H151=\"g\"),\"ZG\",\"\")&IF((F151=\"G\")*(G151=\"G\")*(H151=\"K\"),\"G\",\"\")&IF((F151=\"G\")*(G151=\"k\")*(H151=\"g\"),\"G\",\"\")&IF((F151=\"K\")*(G151=\"G\")*(H151=\"G\"),\"G\",\"\")&IF((F151=\"G\")*(G151=\"K\")*(H151=\"K\"),\"K\",\"\")&IF((F151=\"K\")*(G151=\"G\")*(H151=\"K\"),\"K\",\"\")&IF((F151=\"K\")*(G151=\"K\")*(H151=\"G\"),\"G\",\"\")&IF((F151=\"K\")*(G151=\"K\")*(H151=\"K\"),\"ZK\",\"\")))","v":""},{"$f":"IF(I151=\"ZG\",\"1\",IF(I151=\"G\",\"2\",IF(I151=\"K\",\"3\",IF(I151=\"Zk\",\"4\",IF((I151=\"__\"),\"5\",\"6\")))))","v":"6"},null,null,null,{"$f":"IF(C151=\"x\",\"----\",\"\")&IF(E151=\"x\",\"----\",\"\")","v":""},null,null,null,{"$f":"IF(C151=\"x\",\"----\",IF(E151=\"x\",\"----\",IF(N151=\"x\",\"\",IF((O151=\"g\")*(P151=\"g\")*(Q151=\"g\"),\"ZG\",\"\")&IF((O151=\"G\")*(P151=\"G\")*(Q151=\"K\"),\"G\",\"\")&IF((O151=\"G\")*(P151=\"k\")*(Q151=\"g\"),\"G\",\"\")&IF((O151=\"K\")*(P151=\"G\")*(Q151=\"G\"),\"G\",\"\")&IF((O151=\"G\")*(P151=\"K\")*(Q151=\"K\"),\"K\",\"\")&IF((O151=\"K\")*(P151=\"G\")*(Q151=\"K\"),\"K\",\"\")&IF((O151=\"K\")*(P151=\"K\")*(Q151=\"G\"),\"G\",\"\")&IF((O151=\"K\")*(P151=\"K\")*(Q151=\"K\"),\"ZK\",\"\"))))","v":""},{"$f":"IF(R151=\"ZG\",\"1\",IF(R151=\"G\",\"2\",IF(R151=\"K\",\"3\",IF(R151=\"Zk\",\"4\",IF((R151=\"__\"),\"5\",\"6\")))))","v":"6"}]
["8.07","Wordt het gebruik van cash-geld vermeden?",null,null,null,null,null,null,"","6",null,null,null,"",null,null,null,"","6"]
["8.08","Worden er geschikte handgels ter beschikking gesteld?",null,null,null,null,null,null,"","6",null,null,null,"",null,null,null,"","6"]
["8.09","Wordt er extra aandacht voor hygiëne besteed in deze ruimtes (Veelvuldig gebruik op korte tijdspanne)?",null,null,null,null,null,null,"","6",null,null,null,"",null,null,null,"","6"]
["8.10","Worden bedieningsknoppen van keukentoestellen, de buitenkant van frigo's, microgolfovens…, de stoelen (zitting, onderstel en eventueel leuning), waterfonteinen, drankautomaten (keuzeknoppen) regelmatig grondig gereinigd?",null,null,null,null,null,null,"","6",null,null,null,"",null,null,null,"","6"]
["8.11","Zijn deze afspraken ook van toepassing in de rookruimte?",null,null,null,null,null,null,"","6",null,null,null,"",null,null,null,"","6"]
[9,"Circulatie"]
["9.01","Worden de regels van social distancing ten allen tijde gerespecteerd?",null,null,null,null,null,null,"","6",null,null,null,"",null,null,null,"","6"]
["9.02","Worden de routes zo duidelijk mogelijk aangegeven door gebruik te maken van markeringen, linten of fysieke afscheiding? Zowel voor medewerkers als voor extenen.",null,null,null,null,null,null,"","6",null,null,null,"",null,null,null,"","6"]
["9.03","Worden spreidingsmaatregelen toegepast om het kruisen van personen zoveel mogelijk te vermijden, door gebruik te maken van markeringen, linten of fysieke afscheiding, ? Zowel voor medewerkers als voor extenen.",null,null,null,null,null,null,"","6",null,null,null,"",null,null,null,"","6"]
["9.04","Is de optie om bepaalde in- uit- en doorgangen eenrichtingsverkeer te maken ten gronde bekeken?",null,null,null,null,null,null,"","6",null,null,null,"",null,null,null,"","6"]
["9.05","Wordt het gebruik van liften afgeraden? ",null,null,null,null,null,null,"","6",null,null,null,"",null,null,null,"","6"]
["9.06","Is het aantal personen dat gelijktijdig gebruik maakt van de lift beperkt tot 1persoon",null,null,null,null,null,null,"","6",null,null,null,"",null,null,null,"","6"]
["9.07","Is er eenrichtingsverkeer voorzien op smalle trappen, of doorgangen (vb één trap voor naar boven gaan en een andere voor naar beneden gaan)",null,null,null,null,null,null,"","6",null,null,null,"",null,null,null,"","6"]
["9.08","Zijn er voorrangsregels afgesproken op smalle trappen of doorgangen (vb voorrang voor wie naar boven gaat of omgekeerd)",null,null,null,null,null,null,"","6",null,null,null,"",null,null,null,"","6"]
["9.09","Worden deuren die niet gesloten moeten blijven om veiligheidsredenen zoveel mogelijk open gelaten om veelvuldige aanraking te vermijden?",null,null,null,null,null,null,"","6",null,null,null,"",null,null,null,"","6"]
[10,"Terug naar huis"]
["10.01","Hebben medewerkers de instructie gekregen de handen te wassen voor het vertrek naar huis?",null,null,null,null,null,null,"","6",null,null,null,"",null,null,null,"","6"]
["10.02","Worden de vertrektijden zoveel mogelijk gespreid?",null,null,null,null,null,null,"","6",null,null,null,"",null,null,null,"","6"]
["10.03","Hebben mederwerkers die per fiets, per step of te voet naar huis gaan de instructie gekregen om voldoende afstand te houden en bij voorkeur geen gebruik te maken van deelfietsen, deelsteps,…",null,null,null,null,null,null,"","6",null,null,null,"",null,null,null,"","6"]
["10.04","Hebben mederwerkers die, niet alleen,  met de wagen naar huis gaan, de instructie gekregen om de minilmale afstand van 1,5m tussen elke persoon tijdens het vervoerte respecteren?",null,null,null,null,null,null,"","6",null,null,null,"",null,null,null,"","6"]
["10.05","Hebben deze medewerkers de instructie gekregen om de auto regelmatig te verluchten en te reinigen?",null,null,null,null,null,null,"","6",null,null,null,"",null,null,null,"","6"]
["10.06","Hebben medewerkers die met het openbaar vervoer naar huis gaan, de instructie gekregen om de richtlijnen van de openbare vervoersmaatschappijen  strikt te volgen?",null,null,null,null,null,null,"","6",null,null,null,"",null,null,null,"","6"]
["10.07","Hebben medewerkers de instructie gekregen de handen te wassen voor het vertrek naar huis?",null,null,null,null,null,null,"","6",null,null,null,"",null,null,null,"","6"]
[11,"Regels voor externen, zoals bezoekers, klanten, Cliënteel, leveranciers, ouders,…"]
["11.01","Wordt het aantal externen beperkt tot het absoluut noodzakelijke?",null,null,null,null,null,null,"","6",null,null,null,"",null,null,null,"","6"]
["11.02","Worden de instructies, regels van toepassing op exterenen geafficheerd en mee gedeeld daar waar zij binnenkomen?",null,null,null,null,null,null,"","6",null,null,null,"",null,null,null,"","6"]
["11.03","Worden de bezoeken gespreid in tijd zodat er niet teveel externen tergelijkertijd aanwezig zijn? Wordt hiervoor met afspraken gewerkt",null,null,null,null,null,null,"","6",null,null,null,"",null,null,null,"","6"]
["11.04","Worden de bezoeken zodanig georganiseerd dat de regels van social distancing worden gerespecteerd?",null,null,null,null,null,null,"","6",null,null,null,"",null,null,null,"","6"]
["11.05","Worden de bezoeken in tijd beperkt (vb max tijd aanwezig in het gebouw)?",null,null,null,null,null,null,"","6",null,null,null,"",null,null,null,"","6"]
["11.06","Worden de externen in afzonderlijke ruimtes ontvangen",null,null,null,null,null,null,"","6",null,null,null,"",null,null,null,"","6"]
["11.07","Is de inrichting van de onthaalruimte/receptie voldoende uitgerust met de nodige beschermingsmiddelen (wanden , schermen,…)?",null,null,null,null,null,null,"","6",null,null,null,"",null,null,null,"","6"]
["11.08","Is er, voor externen , de mogelijkheid om de handen te wassen?",null,null,null,null,null,null,"","6",null,null,null,"",null,null,null,"","6"]
["11.09","Indien niet is er, voor externen , de mogelijkheid om de handen te ontsmetten?",null,null,null,null,null,null,"","6",null,null,null,"",null,null,null,"","6"]
["11.10","Is er een plaats voorzien waar post of pakjes contactloos kunnen worden gedeponeerd?",null,null,null,null,null,null,"","6",null,null,null,"",null,null,null,"","6"]
["11.11","Worden leveringen uitgevoerd met zo weinig mogelijk contact met andere personen (laden en lossen volledig door leverancier of volledig door ontvanger)?",null,null,null,null,null,null,"","6",null,null,null,"",null,null,null,"","6"]
["11.12","Worden leveringen gespreid ingepland om de aanwezigheid van meerdere leveranciers tergelijkertijd te vermijden?",null,null,null,null,null,null,"","6",null,null,null,"",null,null,null,"","6"]
["11.13","Worden afhaalpunten buiten het gebouw gebruikt?",null,null,null,null,null,null,"","6",null,null,null,"",null,null,null,"","6"]
["11.14","Worden afhaaluren afgesproken?",null,null,null,null,null,null,"","6",null,null,null,"",null,null,null,"","6"]
["11.15","Wordt bij betalingen zoveel mogelijk gebruik gemaakt van elektronische betalingen (vermijden cash)?",null,null,null,null,null,null,"","6",null,null,null,"",null,null,null,"","6"]
["11.16","Wordt de betaalterminaal regelmatig gereinigd?",null,null,null,null,null,null,"","6",null,null,null,"",null,null,null,"","6"]
[12,"Thuis werken"]
["12.01","Zijn er goede afspraken over arbeidsuren, taken, planning en overleg?",null,null,null,null,null,null,"","6",null,null,null,"",null,null,null,"","6"]
["12.02","Zijn er passende instructies i.v.m. de communicatie en de communicatietools?",null,null,null,null,null,null,"","6",null,null,null,"",null,null,null,"","6"]
["12.03","Worden medewerkers die thuis werken op het belang van pauzes gewezen en wordt vermeden dat medewerkers teveel uren werken door een vals gevoel van verantwoordelijkheid?",null,null,null,null,null,null,"","6",null,null,null,"",null,null,null,"","6"]
["12.04","Worden medewerkers die thuis werken op het belang van een ergonomische opstelling gewezen (goede verlichting, inrichting werkplek, degelijk afgestelde stoel en tafel,…)?",null,null,null,null,null,null,"","6",null,null,null,"",null,null,null,"","6"]
["12.05","Worden de welzijnsgebonden aspecten die verbonden zijn aan thuiswerk, waaronder de arbeidsgerelateerde psychosociale aspecten, met de medewerkers besproken?",null,null,null,null,null,null,"","6",null,null,null,"",null,null,null,"","6"]
["12.06","Wordt telewerk in de toekomst verder doorgezet? Moet hiervoor een risicoanalyse worden opgemaakt?",null,null,null,null,null,null,"","6",null,null,null,"",null,null,null,"","6"]
[13,"Bijkomende zaken eigen aan de organisatie"]
[null,null,null,null,null,null,null,null,"","6",null,null,null,"",null,null,null,"","6"]
[null,null,null,null,null,null,null,null,"","6",null,null,null,"",null,null,null,"","6"]
[null,null,null,null,null,null,null,null,"","6",null,null,null,"",null,null,null,"","6"]
[null,null,null,null,null,null,null,null,"","6",null,null,null,"",null,null,null,"","6"]
[null,null,null,null,null,null,null,null,"","6",null,null,null,"",null,null,null,"","6"]
[null,null,null,null,null,null,null,null,"","6",null,null,null,"",null,null,null,"","6"]
["Hiërarchische Lijn \n\n\n\ndatum",null,"Preventieadviseur - Arbeidsgeneesheer\n\n\n\ndatum",null,null,null,null,null,null,null,null,"Preventieadviseur\n\n\n\nDatum"]

{"sheet":"Blad3","index":1,"n_rows":0,"n_cols":0,"rows_kept":0,"cut":false,"hidden":false,"merged":[]}